bitfinex-derivatives/quotes_BTCF0:USTF0_20250505
["timestamp","ask_amount","ask_price","bid_price","bid_amount"]
[1746408203554,0.21520112,94400.0,94399.0,0.526664]
[1746408203753,0.001,94400.0,94399.0,0.526664]
[1746408204157,0.00881836,94400.0,94399.0,0.526664]
[1746408204553,0.01081836,94400.0,94399.0,0.526664]
[1746408205163,0.06684,94416.0,94399.0,0.526664]
[1746408205363,0.2118515,94401.0,94400.0,0.211864]
[1746408205662,0.2118515,94401.0,94400.0,0.771864]
[1746408206255,0.2118515,94401.0,94400.0,0.891864]
[1746408206562,0.2128515,94401.0,94400.0,0.891864]
[1746408208463,0.2138515,94401.0,94400.0,0.891864]
[1746408208965,0.05779593,94410.0,94400.0,0.891864]
[1746408209167,0.2118515,94401.0,94400.0,0.67580978]
[1746408209357,0.3118515,94401.0,94400.0,0.67580978]
[1746408210265,0.31974096,94401.0,94400.0,0.67580978]
[1746408211166,0.31974096,94401.0,94400.0,0.63988912]
[1746408211765,0.2128515,94401.0,94400.0,0.63988912]
[1746408211959,0.3128515,94401.0,94400.0,0.63988912]
[1746408213465,0.3128515,94401.0,94400.0,0.62927912]
[1746408214255,0.3128515,94401.0,94400.0,0.62923912]
[1746408214461,0.2118753,94391.0,94385.0,0.36185948]
[1746408214662,0.11076213,94395.0,94386.0,0.16161435]
[1746408214862,0.1529655,94397.0,94394.0,0.3608]
[1746408215264,0.2118627,94396.0,94395.0,0.16161435]
[1746408216171,0.2118627,94396.0,94395.0,0.28161435]
[1746408217367,0.2118627,94396.0,94395.0,0.28461435]
[1746408217563,0.2118627,94396.0,94395.0,0.38571435]
[1746408217771,0.05779593,94405.0,94395.0,0.49011435]
[1746408217969,0.26963843,94405.0,94404.0,0.3608]
[1746408218269,0.2118425,94405.0,94404.0,0.3608]
[1746408218569,0.3177705,94405.0,94404.0,0.3608]
[1746408218771,0.3177705,94405.0,94404.0,0.30942724]
[1746408219162,0.2118425,94405.0,94404.0,0.42942724]
[1746408219974,0.06676,94407.0,94404.0,0.42942724]
[1746408220176,0.05,94406.0,94405.0,0.1021]
[1746408220674,0.3677683,94406.0,94405.0,0.1021]
[1746408221066,0.3677683,94406.0,94405.0,0.2221]
[1746408221463,0.3687683,94406.0,94405.0,0.2221]
[1746408221867,0.3697683,94406.0,94405.0,0.2221]
[1746408222066,0.2138403,94406.0,94405.0,0.2221]
[1746408222267,0.2138403,94406.0,94405.0,0.16966776]
[1746408222674,0.06676,94411.0,94405.0,0.16966776]
[1746408222975,0.0529578,94410.0,94406.0,0.1065]
[1746408223166,0.2118381,94407.0,94406.0,0.2265]
[1746408223875,0.2118381,94407.0,94406.0,0.21589]
[1746408224570,0.2148381,94407.0,94406.0,0.21589]
[1746408225071,0.2148381,94407.0,94406.0,0.37750435]
[1746408225472,0.2148381,94407.0,94406.0,0.47640435]
[1746408225868,0.2118381,94407.0,94406.0,0.47640435]
[1746408228775,0.2118381,94407.0,94406.0,0.4258988]
[1746408230378,0.06676,94416.0,94406.0,0.4258988]
[1746408230585,0.33637383,94416.0,94415.0,0.3608]
[1746408230779,0.5845028,94416.0,94415.0,0.3608]
[1746408230976,0.2118381,94407.0,94406.0,0.2189]
[1746408231178,0.2133381,94407.0,94406.0,0.16589227]
[1746408231380,0.4177621,94407.0,94406.0,0.15595228]
[1746408232474,0.3192621,94407.0,94406.0,0.15595228]
[1746408232983,0.4177621,94407.0,94406.0,0.10342162]
[1746408233183,0.3212621,94407.0,94406.0,0.05041389]
[1746408233374,0.2118538,94400.0,94399.0,0.1063]
[1746408233574,0.3118538,94400.0,94399.0,0.1063]
[1746408233874,0.3118538,94400.0,94399.0,0.09569]
[1746408234074,0.2133538,94400.0,94399.0,0.21569]
[1746408235277,0.3118538,94400.0,94399.0,0.1635357]
[1746408235479,0.3118538,94400.0,94399.0,0.1645357]
[1746408235981,0.3118538,94400.0,94399.0,0.1655357]
[1746408236575,0.3118538,94400.0,94399.0,0.2927357]
[1746408237184,0.2133538,94400.0,94399.0,0.2927357]
[1746408237482,0.0015,94400.0,94399.0,0.2922997]
[1746408238585,0.06676,94416.0,94399.0,0.66576955]
[1746408238780,0.053,94410.0,94406.0,0.3608]
[1746408238977,0.053,94410.0,94407.0,0.11226071]
[1746408239176,0.053,94410.0,94408.0,0.16161435]
[1746408239374,0.053,94410.0,94408.0,0.28261435]
[1746408239578,0.3118333,94410.0,94409.0,0.16161435]
[1746408239978,0.2658333,94410.0,94409.0,0.16161435]
[1746408240188,0.2658333,94410.0,94409.0,0.28161435]
[1746408240386,0.2648333,94410.0,94409.0,0.28161435]
[1746408240588,0.2658333,94410.0,94409.0,0.40971435]
[1746408241482,0.3128333,94410.0,94409.0,0.40971435]
[1746408241687,0.3138333,94410.0,94409.0,0.40971435]
[1746408241890,0.3128333,94410.0,94409.0,0.40971435]
[1746408242079,0.3138333,94410.0,94409.0,0.53231435]
[1746408242387,0.3128333,94410.0,94409.0,0.53231435]
[1746408242588,0.2668333,94410.0,94409.0,0.53231435]
[1746408242787,0.2668313,94410.0,94409.0,0.53231435]
[1746408243487,0.3138313,94410.0,94409.0,0.53231435]
[1746408243987,0.3138313,94410.0,94409.0,0.52170435]
[1746408244588,0.2668313,94410.0,94409.0,0.52170435]
[1746408244789,0.3138313,94410.0,94409.0,0.52170435]
[1746408244991,0.3138313,94410.0,94409.0,0.3168965]
[1746408245188,0.3138313,94410.0,94409.0,0.25463752]
[1746408245490,0.2481313,94410.0,94409.0,0.25463752]
[1746408245882,0.3648313,94410.0,94409.0,0.25463752]
[1746408246284,0.4305313,94410.0,94409.0,0.25463752]
[1746408246485,0.53645284,94410.0,94409.0,0.1226]
[1746408246683,0.53645284,94410.0,94409.0,0.11199284]
[1746408247084,0.2118583,94398.0,94397.0,0.36234904]
[1746408247285,0.3118583,94398.0,94397.0,0.36234904]
[1746408247485,0.3118583,94398.0,94397.0,0.48166185]
[1746408248287,0.3118583,94398.0,94397.0,0.5487414]
[1746408248482,0.3118583,94398.0,94397.0,0.42942859]
[1746408248682,0.3118583,94398.0,94397.0,0.43142859]
[1746408251093,0.3118583,94398.0,94397.0,0.4838]
[1746408251590,0.3118583,94398.0,94397.0,0.4319575]
[1746408253490,0.2118583,94398.0,94397.0,0.4319575]
[1746408254296,0.2118583,94398.0,94397.0,0.37764479]
[1746408258196,0.2118583,94398.0,94397.0,0.4969576]
[1746408261594,0.3118583,94398.0,94397.0,0.1361576]
[1746408261799,0.0529735,94382.0,94370.0,0.3608]
[1746408262095,0.2444964,94381.0,94380.0,0.3608]
[1746408262501,0.2974964,94381.0,94380.0,0.3608]
[1746408262702,0.2180964,94381.0,94380.0,0.3608]
[1746408263000,0.36420011,94381.0,94380.0,0.3608]
[1746408263200,0.48480011,94381.0,94380.0,0.4858]
[1746408264703,0.60920011,94381.0,94380.0,0.4908]
[1746408265298,0.60920011,94381.0,94380.0,0.43761036]
[1746408265802,0.60920011,94381.0,94380.0,0.13]
[1746408266503,0.48480011,94381.0,94380.0,0.13]
[1746408269105,0.48480011,94381.0,94380.0,0.07725866]
[1746408269299,0.48480011,94381.0,94380.0,0.20405866]
[1746408271196,0.48480011,94381.0,94380.0,0.17638453]
[1746408274899,0.05330371,94381.0,94380.0,0.17638453]
[1746408275102,0.26520011,94381.0,94380.0,0.17638453]
[1746408275307,0.05330371,94381.0,94380.0,0.17638453]
[1746408279411,0.26520011,94381.0,94380.0,0.17638453]
[1746408281011,0.05330371,94381.0,94380.0,0.17638453]
[1746408282111,0.26520011,94381.0,94380.0,0.53718453]
[1746408285719,0.05330371,94381.0,94380.0,0.53718453]
[1746408285921,0.26520011,94381.0,94380.0,0.53718453]
[1746408289209,0.26520011,94381.0,94380.0,0.67048453]
[1746408289615,0.0529581,94410.0,94380.0,0.77644053]
[1746408289814,0.2118583,94398.0,94397.0,0.3608]
[1746408290015,0.2,94398.0,94397.0,0.3608]
[1746408290217,0.1,94398.0,94397.0,0.4808]
[1746408290422,0.2231,94398.0,94397.0,0.4808]
[1746408291115,0.4349583,94398.0,94397.0,0.4808]
[1746408291318,0.3349583,94398.0,94397.0,0.4808]
[1746408292318,0.3349583,94398.0,94397.0,0.4818]
[1746408292926,0.4349583,94398.0,94397.0,0.4818]
[1746408293117,0.4359583,94398.0,94397.0,0.4818]
[1746408295127,0.4421583,94398.0,94397.0,0.4818]
[1746408295428,0.5359583,94398.0,94397.0,0.4818]
[1746408297231,0.5359583,94398.0,94397.0,0.121]
[1746408299731,0.6022783,94398.0,94397.0,0.121]
[1746408302822,0.6022783,94398.0,94397.0,0.02341572]
[1746408303028,0.2118919,94383.0,94382.0,0.19434574]
[1746408303227,0.2118991,94380.0,94378.0,0.1429]
[1746408303429,0.144,94379.0,94378.0,0.1429]
[1746408303629,0.4921009,94379.0,94378.0,0.1429]
[1746408303825,0.2802,94379.0,94378.0,0.1429]
[1746408304027,0.4921009,94379.0,94378.0,0.1429]
[1746408304226,0.4851009,94379.0,94378.0,0.2629]
[1746408305737,0.5861009,94379.0,94378.0,0.2659]
[1746408306135,0.5861009,94379.0,94378.0,0.2689]
[1746408308333,0.4861009,94379.0,94378.0,0.2689]
[1746408308827,0.2742,94379.0,94378.0,0.2689]
[1746408309029,0.4861009,94379.0,94378.0,0.2689]
[1746408309341,0.1372,94379.0,94378.0,0.2689]
[1746408310037,0.3491009,94379.0,94378.0,0.2689]
[1746408310739,0.1372,94379.0,94378.0,0.2689]
[1746408311435,0.3491009,94379.0,94378.0,0.2689]
[1746408314242,0.1372,94379.0,94378.0,0.2689]
[1746408314948,0.1372,94379.0,94378.0,0.6297]
[1746408315648,0.3491009,94379.0,94378.0,0.6297]
[1746408316243,0.1372,94379.0,94378.0,0.6297]
[1746408317439,0.1372,94379.0,94378.0,0.2689]
[1746408317641,0.1372,94379.0,94378.0,0.6297]
[1746408320148,0.3491009,94379.0,94378.0,0.6297]
[1746408324850,0.1372,94379.0,94378.0,0.6297]
[1746408325243,0.3491009,94379.0,94378.0,0.6297]
[1746408325950,0.3491009,94379.0,94378.0,0.2689]
[1746408326150,0.3491009,94379.0,94378.0,0.6297]
[1746408327153,0.1372,94379.0,94378.0,0.6297]
[1746408327646,0.001,94379.0,94378.0,0.6297]
[1746408327855,0.2118692,94394.0,94378.0,0.735656]
[1746408328052,0.2118692,94394.0,94393.0,0.3608]
[1746408328348,0.3118692,94394.0,94393.0,0.3608]
[1746408329145,0.1,94394.0,94393.0,0.4808]
[1746408329350,0.101,94394.0,94393.0,0.4808]
[1746408330944,0.101,94394.0,94393.0,0.4818]
[1746408332151,0.3128672,94394.0,94393.0,0.4818]
[1746408332753,0.101,94394.0,94393.0,0.4818]
[1746408332955,0.3128672,94394.0,94393.0,0.4818]
[1746408333552,0.001,94394.0,94393.0,0.4818]
[1746408334049,0.001,94394.0,94393.0,0.6936695]
[1746408334355,0.05209946,94406.0,94395.0,0.211864]
[1746408334555,0.2118319,94410.0,94405.0,0.3608]
[1746408334743,0.2118319,94410.0,94406.0,0.2788]
[1746408334949,0.2118349,94409.0,94406.0,0.4203]
[1746408335247,0.2118349,94409.0,94406.0,0.5403]
[1746408336251,0.05437289,94410.0,94406.0,0.5403]
[1746408336956,0.09270693,94432.0,94427.0,0.2117932]
[1746408337153,0.31400662,94428.0,94427.0,0.90788]
[1746408337353,0.21400662,94428.0,94427.0,1.2255732]
[1746408337549,0.26828922,94428.0,94427.0,1.2255732]
[1746408338354,0.001,94446.0,94429.0,0.0529468]
[1746408338652,0.001,94446.0,94436.0,0.572573]
[1746408338857,0.05269759,94440.0,94439.0,0.211766]
[1746408339054,0.001,94446.0,94439.0,0.12]
[1746408339251,0.001,94446.0,94445.0,0.3608]
[1746408340164,0.001,94446.0,94445.0,0.4808]
[1746408340460,0.05505996,94446.0,94445.0,0.4808]
[1746408340757,0.012,94446.0,94445.0,0.6287]
[1746408340958,0.02,94446.0,94445.0,0.6287]
[1746408341762,0.02889906,94446.0,94445.0,0.6297]
[1746408342456,0.0818405,94446.0,94445.0,0.4828]
[1746408342659,0.021,94446.0,94445.0,0.4828]
[1746408343460,0.07517168,94446.0,94445.0,0.4828]
[1746408344161,0.18307173,94446.0,94445.0,0.122]
[1746408345064,0.08307173,94446.0,94445.0,0.122]
[1746408348351,0.39482233,94446.0,94445.0,0.122]
[1746408348556,0.08487173,94446.0,94445.0,0.11139]
[1746408348757,0.29662233,94446.0,94445.0,0.11139]
[1746408348964,0.39482233,94446.0,94445.0,0.11139]
[1746408349353,0.50070233,94446.0,94445.0,0.05116784]
[1746408352169,0.39482233,94446.0,94445.0,0.05116784]
[1746408352375,0.32922233,94446.0,94445.0,0.05116784]
[1746408353065,0.39482233,94446.0,94445.0,0.05116784]
[1746408354572,0.29662233,94446.0,94445.0,0.05116784]
[1746408354773,0.39482233,94446.0,94445.0,0.05116784]
[1746408355465,0.39482233,94446.0,94445.0,0.02670784]
[1746408357974,0.2117752,94435.0,94434.0,0.3608]
[1746408358184,0.3117752,94435.0,94434.0,0.4808]
[1746408359267,0.3197752,94435.0,94434.0,0.4818]
[1746408359668,0.6612752,94435.0,94434.0,0.4818]
[1746408360475,0.2118044,94422.0,94421.0,0.03911418]
[1746408360679,0.2118081,94421.0,94418.0,0.1638]
[1746408360870,0.3108111,94419.0,94418.0,0.1638]
[1746408361075,0.2118179,94416.0,94415.0,0.3608]
[1746408361972,0.2118358,94408.0,94407.0,0.06624]
[1746408362281,0.2118305,94411.0,94407.0,0.12]
[1746408362580,0.3831315,94410.0,94407.0,0.12]
[1746408362784,0.5552315,94410.0,94408.0,0.1638]
[1746408362985,0.2118336,94409.0,94408.0,0.1638]
[1746408363282,0.2118336,94409.0,94408.0,0.2838]
[1746408363585,0.5625336,94409.0,94408.0,0.2838]
[1746408364682,0.3507,94409.0,94408.0,0.2838]
[1746408365181,0.5625336,94409.0,94408.0,0.2838]
[1746408365482,0.5695336,94409.0,94408.0,0.2848]
[1746408365784,0.5725336,94409.0,94408.0,0.2848]
[1746408367178,0.6725336,94409.0,94408.0,0.2848]
[1746408367482,0.3607,94409.0,94408.0,0.2848]
[1746408369375,0.1884,94409.0,94408.0,0.2848]
[1746408370386,0.4002336,94409.0,94408.0,0.2848]
[1746408370585,0.01,94409.0,94408.0,0.4966358]
[1746408370783,0.01,94409.0,94408.0,0.2848]
[1746408371584,0.01,94409.0,94408.0,0.449]
[1746408372780,0.01,94409.0,94408.0,0.76675979]
[1746408380386,0.01,94409.0,94408.0,1.12755979]
[1746408381179,0.01,94409.0,94408.0,0.76675979]
[1746408381586,0.01,94409.0,94408.0,1.12755979]
[1746408385293,0.01,94409.0,94408.0,1.0216358]
[1746408385489,0.01,94409.0,94408.0,1.12755979]
[1746408388196,0.01,94409.0,94408.0,1.0216358]
[1746408392996,0.01,94409.0,94408.0,1.0878358]
[1746408402404,0.01,94409.0,94408.0,0.7270358]
[1746408402607,0.01,94409.0,94408.0,1.0878358]
[1746408403111,0.01,94409.0,94408.0,0.7270358]
[1746408403406,0.01,94409.0,94408.0,1.0878358]
[1746408404304,0.01,94409.0,94408.0,0.7270358]
[1746408404508,0.01,94409.0,94408.0,1.0878358]
[1746408406504,0.01,94409.0,94408.0,0.9236358]
[1746408410311,0.01,94409.0,94408.0,0.121]
[1746408412731,0.2218336,94409.0,94408.0,0.121]
[1746408413119,0.3218336,94409.0,94408.0,0.06887387]
[1746408413323,0.0529618,94403.0,94383.0,0.0662]
[1746408413521,0.1,94395.0,94382.0,0.3608]
[1746408413724,0.3481,94394.0,94382.0,0.3608]
[1746408413929,0.2118699,94393.0,94384.0,0.2118875]
[1746408414233,0.53,94394.0,94384.0,0.2118875]
[1746408414434,0.3559,94392.0,94384.0,0.2118875]
[1746408414628,0.40761474,94392.0,94384.0,0.2118875]
[1746408414827,0.40761474,94392.0,94385.0,0.2118869]
[1746408415236,0.40761474,94392.0,94385.0,0.3318869]
[1746408416132,0.40861474,94392.0,94385.0,0.3318869]
[1746408416331,0.50861474,94392.0,94385.0,0.12]
[1746408416522,0.41041474,94392.0,94385.0,0.12]
[1746408416727,0.41670583,94392.0,94385.0,0.122]
[1746408416928,0.51670583,94392.0,94385.0,0.122]
[1746408417126,0.72857903,94392.0,94385.0,0.122]
[1746408417329,0.51670583,94392.0,94385.0,0.122]
[1746408417835,0.211875,94391.0,94385.0,0.123]
[1746408418036,0.51770583,94392.0,94385.0,0.123]
[1746408418227,0.3502,94390.0,94385.0,0.123]
[1746408418733,0.4502,94390.0,94385.0,0.123]
[1746408419134,0.4502,94390.0,94385.0,0.122]
[1746408419336,0.4522,94390.0,94385.0,0.123]
[1746408419538,0.3522,94390.0,94385.0,0.123]
[1746408421137,0.3522,94390.0,94385.0,0.121]
[1746408421440,0.3118786,94389.0,94385.0,0.123]
[1746408421635,0.0018,94388.0,94385.0,0.123]
[1746408421836,0.3412,94388.0,94385.0,0.123]
[1746408422030,0.1,94387.0,94385.0,0.123]
[1746408422439,0.3499,94386.0,94385.0,0.123]
[1746408422825,0.6617852,94386.0,94385.0,0.123]
[1746408423029,0.7677332,94386.0,94385.0,0.123]
[1746408423731,0.7003332,94386.0,94385.0,0.123]
[1746408423931,0.7677332,94386.0,94385.0,0.123]
[1746408424238,0.7003332,94386.0,94385.0,0.003]
[1746408424434,0.2118922,94383.0,94371.0,0.3608]
[1746408424641,0.0549716,94386.0,94385.0,0.002]
[1746408424936,0.1549716,94386.0,94385.0,0.002]
[1746408425137,0.0875716,94386.0,94385.0,0.002]
[1746408425334,0.3668568,94386.0,94385.0,0.002]
[1746408425537,0.2119166,94372.0,94371.0,0.007]
[1746408425735,0.3608,94373.0,94371.0,0.005]
[1746408425936,0.2119346,94364.0,94363.0,0.4097]
[1746408426132,0.4474,94364.0,94350.0,0.35969184]
[1746408426332,0.2119638,94351.0,94342.0,0.76]
[1746408426539,0.152991,94351.0,94341.0,0.16172772]
[1746408426738,0.15894889,94363.0,94350.0,0.3608]
[1746408427035,0.0529847,94363.0,94351.0,0.173]
[1746408427240,0.2119538,94356.0,94351.0,0.173]
[1746408427637,0.211956,94355.0,94351.0,0.173]
[1746408427835,0.2119574,94354.0,94351.0,0.173]
[1746408428236,0.2119529,94356.0,94351.0,0.293]
[1746408428440,0.2119581,94354.0,94351.0,0.293]
[1746408428634,0.2119539,94356.0,94351.0,0.293]
[1746408428840,0.001,94355.0,94351.0,0.303]
[1746408429233,0.212955,94355.0,94351.0,0.303]
[1746408430442,0.211955,94355.0,94351.0,0.295]
[1746408430643,0.001,94354.0,94351.0,0.303]
[1746408430839,0.2119593,94353.0,94351.0,0.301]
[1746408431238,0.2119593,94353.0,94351.0,0.293]
[1746408431542,0.2119593,94353.0,94351.0,0.301]
[1746408432038,0.2129593,94353.0,94351.0,0.293]
[1746408432234,0.3119615,94352.0,94351.0,0.127]
[1746408433537,0.3129615,94352.0,94351.0,0.12]
[1746408433737,0.2157615,94352.0,94351.0,0.128]
[1746408434239,0.3139615,94352.0,94351.0,0.128]
[1746408434542,0.2157615,94352.0,94351.0,0.128]
[1746408434743,0.3139615,94352.0,94351.0,0.128]
[1746408435240,0.2157615,94352.0,94351.0,0.128]
[1746408435538,0.002,94352.0,94351.0,0.128]
[1746408436136,0.002,94352.0,94351.0,0.482]
[1746408437447,0.002,94352.0,94351.0,0.6939638]
[1746408437643,0.3608,94364.0,94352.0,0.0529903]
[1746408438147,0.3608,94364.0,94352.0,0.1729903]
[1746408438446,0.3608,94364.0,94353.0,0.0529897]
[1746408438637,0.3608,94364.0,94352.0,0.12]
[1746408438638,0.3608,94364.0,94357.0,0.2119494]
[1746408438834,0.3608,94364.0,94358.0,0.3589]
[1746408439038,0.3608,94364.0,94358.0,0.6908478]
[1746408439640,0.3618,94364.0,94358.0,0.4789]
[1746408439839,0.001,94364.0,94361.0,0.3608]
[1746408440040,0.002,94364.0,94362.0,0.54]
[1746408440435,0.2119391,94362.0,94361.0,0.12]
[1746408440640,0.3001391,94362.0,94361.0,0.0588128]
[1746408440840,0.2846391,94362.0,94361.0,0.0588128]
[1746408441041,0.3119391,94362.0,94361.0,0.0588128]
[1746408441354,0.203966,94350.0,94343.0,0.5297]
[1746408442449,0.381566,94350.0,94349.0,0.4808]
[1746408442842,0.377566,94350.0,94349.0,0.4808]
[1746408443443,0.558966,94350.0,94349.0,0.4808]
[1746408443643,0.559966,94350.0,94349.0,0.4878]
[1746408443843,0.559966,94350.0,94349.0,0.47121257]
[1746408447446,0.559966,94350.0,94349.0,0.127]
[1746408450344,0.55973641,94350.0,94349.0,0.127]
[1746408454055,0.92053641,94350.0,94334.0,0.1695]
[1746408454243,0.2119997,94335.0,94334.0,0.09889754]
[1746408454443,0.2119916,94339.0,94334.0,0.09889754]
[1746408454648,0.2331984,94338.0,94332.0,0.174]
[1746408455152,0.2120002,94335.0,94332.0,0.294]
[1746408455342,0.212002,94334.0,94333.0,0.1755]
[1746408455549,0.212002,94334.0,94333.0,0.3495]
[1746408455755,0.210002,94334.0,94333.0,0.3495]
[1746408456254,0.210002,94334.0,94333.0,0.4695]
[1746408456454,0.211002,94334.0,94333.0,0.4715]
[1746408456654,0.382902,94334.0,94333.0,0.4715]
[1746408457055,0.39205765,94334.0,94333.0,0.4715]
[1746408459557,0.39205765,94334.0,94333.0,0.2975]
[1746408459953,0.22015765,94334.0,94333.0,0.2975]
[1746408462153,0.39065765,94334.0,94333.0,0.2975]
[1746408463264,0.01015565,94334.0,94333.0,0.2975]
[1746408464563,0.01015565,94334.0,94333.0,0.122]
[1746408465360,0.01015565,94334.0,94333.0,0.467]
[1746408465947,0.22215765,94334.0,94333.0,0.299]
[1746408467054,0.57865765,94334.0,94333.0,0.299]
[1746408467359,0.36665565,94334.0,94333.0,0.299]
[1746408468256,0.03111403,94338.0,94333.0,0.299]
[1746408468461,0.1761,94343.0,94336.0,0.2119969]
[1746408468663,0.1761,94343.0,94342.0,0.3608]
[1746408469054,0.1761,94343.0,94342.0,0.4808]
[1746408470355,0.20824469,94343.0,94342.0,0.4808]
[1746408470754,0.20724469,94343.0,94342.0,0.4808]
[1746408470959,0.2171836,94343.0,94342.0,0.4818]
[1746408471663,0.4291654,94343.0,94342.0,0.4818]
[1746408471852,0.2171836,94343.0,94342.0,0.4818]
[1746408473758,0.4291654,94343.0,94342.0,0.4818]
[1746408475465,0.4291654,94343.0,94342.0,0.121]
[1746408475850,0.2171836,94343.0,94342.0,0.3007]
[1746408476055,0.2171836,94343.0,94342.0,0.6615]
[1746408476563,0.6110654,94343.0,94342.0,0.6615]
[1746408476763,0.6110654,94343.0,94342.0,0.3007]
[1746408478757,0.7110654,94343.0,94342.0,0.121]
[1746408479761,0.6224654,94343.0,94342.0,0.121]
[1746408480458,0.6224654,94343.0,94342.0,0.10461207]
[1746408480857,0.7110654,94343.0,94342.0,0.10461207]
[1746408482564,0.7110654,94343.0,94342.0,0.05105]
[1746408482863,0.8610654,94343.0,94342.0,0.05105]
[1746408483064,0.7724654,94343.0,94342.0,0.05105]
[1746408483265,0.7724654,94343.0,94342.0,0.001]
[1746408483659,0.8610654,94343.0,94342.0,0.001]
[1746408483860,0.7724654,94343.0,94342.0,0.001]
[1746408484055,0.7672654,94343.0,94342.0,0.001]
[1746408484261,0.7724654,94343.0,94342.0,0.001]
[1746408484565,0.7742654,94343.0,94342.0,0.001]
[1746408485163,0.7628654,94343.0,94342.0,0.001]
[1746408485566,0.8140654,94343.0,94342.0,0.001]
[1746408485772,0.8610654,94343.0,94342.0,0.001]
[1746408485962,0.8110654,94343.0,94342.0,0.001]
[1746408486265,0.8110654,94343.0,94342.0,0.121]
[1746408486266,0.7224654,94343.0,94342.0,0.121]
[1746408487567,0.7224654,94343.0,94342.0,0.097723]
[1746408490771,0.8110654,94343.0,94342.0,0.097723]
[1746408491976,0.5990836,94343.0,94342.0,0.097723]
[1746408493678,0.4990836,94343.0,94342.0,0.097723]
[1746408494676,0.0410836,94343.0,94342.0,0.097723]
[1746408496371,0.0400836,94343.0,94342.0,0.097723]
[1746408496678,0.0410836,94343.0,94342.0,0.097723]
[1746408507377,0.0410836,94343.0,94342.0,0.309707]
[1746408507581,0.173,94359.0,94345.0,0.0529942]
[1746408507878,0.2119558,94355.0,94349.0,0.3608]
[1746408508087,0.3558,94357.0,94350.0,0.5232]
[1746408508380,0.1828,94354.0,94350.0,0.5232]
[1746408508579,0.173,94353.0,94350.0,0.5232]
[1746408508780,0.3119638,94351.0,94350.0,0.1755]
[1746408509279,0.1,94351.0,94350.0,0.1755]
[1746408509480,0.273,94351.0,94350.0,0.1755]
[1746408509685,0.5607638,94351.0,94350.0,0.1755]
[1746408510277,0.5617638,94351.0,94350.0,0.1755]
[1746408510675,0.3498,94351.0,94350.0,0.1755]
[1746408510877,0.3508,94351.0,94350.0,0.1755]
[1746408512782,0.6627638,94351.0,94350.0,0.1755]
[1746408513788,0.3508,94351.0,94350.0,0.1755]
[1746408513986,0.4508,94351.0,94350.0,0.1755]
[1746408514383,0.6627638,94351.0,94350.0,0.1755]
[1746408514580,0.4508,94351.0,94350.0,0.1755]
[1746408514880,0.3508,94351.0,94350.0,0.1755]
[1746408517790,0.002,94351.0,94350.0,0.1755]
[1746408520192,0.002,94351.0,94350.0,0.2955]
[1746408527296,0.3139638,94351.0,94350.0,0.12]
[1746408531000,0.3159638,94351.0,94350.0,0.12]
[1746408531800,0.3149638,94351.0,94350.0,0.12]
[1746408531992,0.2331638,94351.0,94350.0,0.121]
[1746408534001,0.3159638,94351.0,94350.0,0.121]
[1746408534300,0.2331638,94351.0,94350.0,0.121]
[1746408534504,0.3159638,94351.0,94350.0,0.121]
[1746408534916,0.2331638,94351.0,94350.0,0.121]
[1746408536013,0.3159638,94351.0,94350.0,0.121]
[1746408538107,0.2331638,94351.0,94350.0,0.121]
[1746408538710,0.3159638,94351.0,94350.0,0.121]
[1746408539307,0.2331638,94351.0,94350.0,0.121]
[1746408539710,0.3159638,94351.0,94350.0,0.121]
[1746408540514,0.2331638,94351.0,94350.0,0.121]
[1746408540709,0.2175638,94351.0,94350.0,0.121]
[1746408542410,0.2331638,94351.0,94350.0,0.121]
[1746408543916,0.2175638,94351.0,94350.0,0.121]
[1746408544216,0.2331638,94351.0,94350.0,0.121]
[1746408544516,0.3159638,94351.0,94350.0,0.121]
[1746408547214,0.2331638,94351.0,94350.0,0.121]
[1746408548523,0.0056,94351.0,94350.0,0.121]
[1746408548717,0.2175638,94351.0,94350.0,0.121]
[1746408548917,0.2159638,94351.0,94350.0,0.121]
[1746408549115,0.2159638,94351.0,94350.0,0.693766]
[1746408549116,0.004,94351.0,94350.0,0.693766]
[1746408552220,0.004,94351.0,94350.0,0.4818]
[1746408552417,0.104,94351.0,94341.0,0.40659555]
[1746408552622,0.211984,94342.0,94341.0,0.34943626]
[1746408552821,0.213584,94342.0,94341.0,0.34943626]
[1746408553019,0.0016,94342.0,94332.0,0.5367]
[1746408553322,0.3120042,94333.0,94332.0,0.1522]
[1746408553721,0.2136042,94333.0,94332.0,0.1522]
[1746408553920,0.2250042,94333.0,94332.0,0.1522]
[1746408554121,0.5761042,94333.0,94332.0,0.2722]
[1746408554322,0.5761042,94333.0,94332.0,0.2732]
[1746408554523,0.6745042,94333.0,94332.0,0.121]
[1746408554827,0.6755042,94333.0,94332.0,0.121]
[1746408556520,0.5885042,94333.0,94332.0,0.121]
[1746408556725,0.6755042,94333.0,94332.0,0.121]
[1746408556925,0.6765042,94333.0,94332.0,0.121]
[1746408558932,0.5895042,94333.0,94332.0,0.121]
[1746408560033,0.6765042,94333.0,94332.0,0.121]
[1746408560223,0.5895042,94333.0,94332.0,0.121]
[1746408560731,0.5781042,94333.0,94332.0,0.121]
[1746408564936,0.6765042,94333.0,94332.0,0.121]
[1746408566038,0.5937042,94333.0,94332.0,0.121]
[1746408566241,0.6765042,94333.0,94332.0,0.121]
[1746408567440,0.5895042,94333.0,94332.0,0.121]
[1746408567741,0.6765042,94333.0,94332.0,0.121]
[1746408568436,0.2120132,94329.0,94328.0,0.1838]
[1746408568644,0.3120132,94329.0,94328.0,0.1838]
[1746408569142,0.2120155,94328.0,94319.0,0.3608]
[1746408569440,0.5769155,94328.0,94326.0,0.1777]
[1746408569643,0.6299155,94328.0,94326.0,0.1777]
[1746408569836,0.6759155,94328.0,94326.0,0.1777]
[1746408570343,0.6769155,94328.0,94327.0,0.0025902]
[1746408570842,0.6779155,94328.0,94327.0,0.0025902]
[1746408571142,0.6309155,94328.0,94327.0,0.0025902]
[1746408571342,0.6779155,94328.0,94327.0,0.0025902]